{"text_format":"1","workbook":"xlsx","n_sheets":4,"sheets":["Vejledning","Projekt","Institutter","Takstkatalog"],"not_rendered":{"charts":0,"images":5,"macros":1,"external_links":0,"defined_names":8,"comments":1,"pivot_tables":0},"unopened":[],"bounds":{"document_bytes":16777216,"sheet_cells":100000,"rows_first":2000,"rows_last":500,"rows_between":2000,"halvings":0,"cell_chars":16384,"cell_head_chars":4096},"cells_cut":0,"cells_raw":0,"read":"whole","date_system":"1900"}

{"sheet":"Vejledning","index":0,"n_rows":2,"n_cols":11,"rows_kept":2,"cut":false,"hidden":false,"merged":[[1,1,1,7],[1,10,1,18]]}
[]
[null,"Link til ny prisfastsættelse",null,null,null,null,null,null,null,null,"Link til Finansministeriets Budgetvejledning"]

{"sheet":"Projekt","index":1,"n_rows":93,"n_cols":27,"rows_kept":93,"cut":false,"hidden":false,"merged":[[27,21,28,21],[27,19,28,19],[15,2,15,8],[17,2,17,8],[21,2,21,8],[21,11,21,12],[24,17,24,22],[27,17,28,17],[27,18,28,18],[27,20,28,20],[17,13,17,15],[13,13,13,15],[2,1,2,15],[7,5,7,15],[4,1,5,2],[4,3,5,15],[11,1,11,15],[7,1,7,2],[9,1,9,2],[9,13,9,14],[13,6,13,8],[62,2,62,10],[63,2,63,10],[64,2,64,10],[0,1,0,15],[27,11,27,15],[27,4,28,4],[27,3,28,3],[24,1,24,15],[26,1,26,15],[15,11,15,12],[19,11,19,12],[27,5,27,10],[15,13,15,15],[27,2,28,2],[13,11,13,12],[19,2,19,8],[50,13,50,14],[92,13,92,15],[88,2,88,9],[92,2,92,9],[88,12,88,15],[82,1,82,10],[65,2,65,10],[59,2,59,10],[60,2,60,10],[78,1,78,10],[57,2,57,10],[58,2,58,10],[70,2,70,10],[71,2,71,10],[72,2,72,10],[61,2,61,10]]}
[null,"Priskalkulationsskema for indtægtsdækket virksomhed (IV) - Opdateret den 20. januar 2023"]
[]
[null,"Har AU Hjemmel til udførelse af aktiviteten? "]
[]
[null,"\nEr aktiviteten i direkte \nforlængelse af instituttets kerneaktiviteter?",null,"Beskriv kort, hvordan aktiviteten er en naturlig udløber af instituttets kerneaktiviteter"]
[]
[]
[null,"Har AU monopol på aktiviteten?",null,"Nej",null,"hvis Ja, giv en kort begrundelse hvorfor at AU har monopol på aktiviteten. EBIT-margin ændres automatisk til 0,0%"]
[]
[null,"Har aktiviteten været i udbud?",null,"Nej",null,null,null,null,null,null,null,null,null,"Gældende for regnskabsåret .: ",null,2023]
[]
[]
[]
[null,"Stednr.:",null,null,"Fakultet.:",null,{"$f":"IFERROR(VLOOKUP(C14,Institutter!A:G,3,0),\"\")","v":""},null,null,null,null,"Bevillingsgiver:"]
[]
[null,"Institut:",{"$f":"IFERROR(VLOOKUP(C14,Institutter!A:G,2,0),\"\")","v":""},null,null,null,null,null,null,null,null,"Projekttitel:"]
[]
[null,"Institutleder:",{"$f":"IFERROR(VLOOKUP(C14,Institutter!A:G,5,0),\"\")","v":""},null,null,null,null,null,null,null,null,"Projekt aktivitet:",null,"Salg af kursus"]
[]
[null,"Projektleder:",null,null,null,null,null,null,null,null,null,"Overheadprocent:",null,1.1599999999999999,{"$f":"IF(OR(C14=\"AR\",C14=\"BSS\"),1485,1580)","v":1580},{"$f":"IFERROR(VLOOKUP(C14,Institutter!A:G,7,0),\"\")","v":""}]
[]
[null,"Projektøkonom:",null,null,null,null,null,null,null,null,null,"Tidsregistrering:",null,{"$f":"IFERROR(VLOOKUP(C14,Institutter!A:H,8,0),\"\")","v":""},"EBIT-margen.:",0.1]
[]
[]
[null,"Timenorm (Hvis ja i tidsregistrering (ProMark) skal der som udgangspunkt indtastes 1460 - vælges der en anden timenorm vil den slå igennem)",null,null,null,null,null,null,null,null,null,null,null,null,null,null,null,"Hvis der er tale om en  kursusaktivitet kan nedenstående udfyldes."]
[]
[]
[null,"Lønninger - gennemsnit","Pris kategori",{"$f":"\"Timepris ved \nTN = \"&P20","v":"Timepris ved \nTN = "},{"$f":"\"Timepris incl. \"\n& OH*100 &\" % OH\"","v":"Timepris incl. 116 % OH"},"Forventede antal timer \nprisreguleret",null,null,null,null,null,{"$f":"\"Salgspriser iht. valgte timenorm \"&P20","v":"Salgspriser iht. valgte timenorm "},null,null,null,null,null,"Kursus udvikling","Kateder timer","For beredelse","Rejse og transport","Anden tid"]
[null,"Stilling (NN personer)",null,null,null,{"$f":"År","v":2023},{"$f":"F29+1","v":2024},{"$f":"G29+1","v":2025},2026,2021,"I alt",{"$f":"År","v":2023},{"$f":"G29","v":2024},{"$f":"H29","v":2025},2026,"I alt",null,null,null,null,null,null,"I alt"]
[null,null,null,{"$f":"IFERROR(VLOOKUP(B30,Takstkatalog!A3:D18,LEFT(C30,1)+1,0)*12/TN,\"\")","v":""},{"$f":"IFERROR(IF(D30=0,\"\",(D30+D30*$N$20)),\"\")","v":""},null,null,null,null,null,{"$f":"SUM(F30:J30)","v":0},{"$f":"IF(+OR(C30=0,F30=0),\"\",(D30*F30)*1.0183)","v":""},{"$f":"IF(+OR(G30=0,G30=0),\"\",D30*G30*IF(ARS=\"Ja\",1.0183*1.03,1.0183*1.03))","v":""},{"$f":"IF(+OR(C30=0,H30=0),\"\",D30*H30*IF(ARS=\"Ja\",1.0183*1.03^2,1.0183*1.03^2))","v":""},{"$f":"IF(+OR(C30=0,I30=0),\"\",D30*I30*IF(ARS=\"Ja\",1.0183*1.03^3,1.0183*1.03^3))","v":""},{"$f":"SUM(L30:O30)","v":0},null,null,null,null,null,null,{"$f":"SUM(R30:V30)","v":0}]
[null,null,null,{"$f":"IFERROR(VLOOKUP(B31,Takstkatalog!A3:D18,LEFT(C31,1)+1,0)*12/TN,\"\")","v":""},{"$f":"IFERROR(IF(D31=0,\"\",(D31+D31*$N$20)),\"\")","v":""},null,null,null,null,null,0,{"$f":"IF(+OR(C31=0,F31=0),\"\",(D31*F31)*1.0183)","v":""},{"$f":"IF(+OR(G31=0,G31=0),\"\",D31*G31*IF(ARS=\"Ja\",1.0183*1.03,1.0183*1.03))","v":""},{"$f":"IF(+OR(C31=0,H31=0),\"\",D31*H31*IF(ARS=\"Ja\",1.0183*1.03^2,1.0183*1.03^2))","v":""},{"$f":"IF(+OR(C31=0,I31=0),\"\",D31*I31*IF(ARS=\"Ja\",1.0183*1.03^3,1.0183*1.03^3))","v":""},{"$f":"SUM(L31:O31)","v":0},null,null,null,null,null,null,{"$f":"SUM(R31:V31)","v":0}]
[null,null,null,{"$f":"IFERROR(VLOOKUP(B32,Takstkatalog!A3:D18,LEFT(C32,1)+1,0)*12/TN,\"\")","v":""},{"$f":"IFERROR(IF(D32=0,\"\",(D32+D32*$N$20)),\"\")","v":""},null,null,null,null,null,0,"",{"$f":"IF(+OR(G32=0,G32=0),\"\",D32*G32*IF(ARS=\"Ja\",1.0183*1.03,1.0183*1.03))","v":""},{"$f":"IF(+OR(C32=0,H32=0),\"\",D32*H32*IF(ARS=\"Ja\",1.0183*1.03^2,1.0183*1.03^2))","v":""},{"$f":"IF(+OR(C32=0,I32=0),\"\",D32*I32*IF(ARS=\"Ja\",1.0183*1.03^3,1.0183*1.03^3))","v":""},{"$f":"SUM(L32:O32)","v":0},null,null,null,null,null,null,0]
[]
[null,"RS-nummer",{"$f":"\"NS Kostpris \"\n  & År","v":"NS Kostpris 2023"},{"$f":"\" Beregnet Kostpris TN= \"&P20","v":" Beregnet Kostpris TN= "},{"$f":"\"Timepris incl. \"\n& OH*100 &\" % OH\"","v":"Timepris incl. 116 % OH"},{"$f":"År","v":2023},{"$f":"F29+1","v":2024},{"$f":"G29+1","v":2025},2026,2021,"I alt",{"$f":"År","v":2023},{"$f":"G29","v":2024},2025,2026,"I alt",null,"Kursus udvikling","Kateder timer","For beredelse","Rejse og transport","Anden tid","I alt"]
[null,null,null,{"$f":"IF(C35=0,\"\",IF(ARS=\"Ja\",C35*(1460/IF($P$20=0,1460,$P$20)),((C35*(1924/IF($P$20=0,1580,$P$20))))))","v":""},{"$f":"IF((C35=0),\"\",(D35+(D35*$N$20)))","v":""},null,null,null,null,null,{"$f":"SUM(F35:J35)","v":0},{"$f":"IF(+OR(C35=0,F35=0),\"\",(D35*F35)*1.0183)","v":""},{"$f":"IF(+OR(G35=0,G35=0),\"\",D35*G35*IF(ARS=\"Ja\",1.0183*1.03,1.0183*1.03))","v":""},{"$f":"IF(+OR(C35=0,H35=0),\"\",D35*H35*IF(ARS=\"Ja\",1.0183*1.03^2,1.0183*1.03^2))","v":""},{"$f":"IF(+OR(C35=0,I35=0),\"\",D35*I35*IF(ARS=\"Ja\",1.0183*1.03^3,1.0183*1.03^3))","v":""},{"$f":"SUM(L35:O35)","v":0},null,null,null,null,null,null,{"$f":"SUM(R35:V35)","v":0}]
[null,null,null,"",{"$f":"IF((C36=0),\"\",(D36+(D36*$N$20)))","v":""},null,null,null,null,null,{"$f":"SUM(F36:J36)","v":0},{"$f":"IF(+OR(C36=0,F36=0),\"\",(D36*F36)*1.0183)","v":""},"","","",{"$f":"SUM(L36:O36)","v":0},null,null,null,null,null,null,{"$f":"SUM(R36:V36)","v":0}]
[null,null,null,"","",null,null,null,null,null,0,"","","","",0,null,null,null,null,null,null,0]
[null,null,null,"",{"$f":"IF((C38=0),\"\",(D38+(D38*$N$20)))","v":""},null,null,null,null,null,{"$f":"SUM(F38:J38)","v":0},"","","","",{"$f":"SUM(L38:O38)","v":0},null,null,null,null,null,null,0]
[null,null,null,"","",null,null,null,null,null,0,"","","","",0,null,null,null,null,null,null,0]
[null,null,null,"","",null,null,null,null,null,0,"","","","",0,null,null,null,null,null,null,0]
[null,null,null,"","",null,null,null,null,null,0,"","","","",0,null,null,null,null,null,null,0]
[null,null,null,"","",null,null,null,null,null,0,"","","","",0,null,null,null,null,null,null,0]
[null,null,null,"","",null,null,null,null,null,0,"","","","",0,null,null,null,null,null,null,0]
[null,null,null,"","",null,null,null,null,null,0,"","","","",0,null,null,null,null,null,null,0]
[null,null,null,"","",null,null,null,null,null,0,"","","","",0,null,null,null,null,null,null,0]
[null,null,null,"","",null,null,null,null,null,0,"","","","",0,null,null,null,null,null,null,0]
[null,null,null,"","",null,null,null,null,null,0,"","","","",0,null,null,null,null,null,null,0]
[null,"Studentermedhjælper",null,{"$f":"IF(C48=0,\"\",C48*1.131)","v":""},"",null,null,null,null,null,0,"","","","",0,null,null,null,null,null,null,0,null,null,{"$f":"IF(N18=\"Salg af kursus\",0,1)","v":0},"kursus"]
[null,null,null,null,null,null,null,null,null,null,null,{"$f":"SUM(L30:L32)+SUM(L35:L48)","v":0},{"$f":"SUM(M30:M32)+SUM(M35:M48)","v":0},{"$f":"SUM(N30:N32)+SUM(N35:N48)","v":0},{"$f":"SUM(O30:O32)+SUM(O35:O48)","v":0},{"$f":"SUM(P30:P32)+SUM(P35:P48)","v":0},null,{"$f":"SUM(R35:R48)+SUM(R31:R32)","v":0},{"$f":"SUM(S35:S48)+SUM(S30:S32)","v":0},{"$f":"SUM(T35:T48)+SUM(T30:T32)","v":0},{"$f":"SUM(U35:U48)+SUM(U30:U32)","v":0},{"$f":"SUM(V35:V48)+SUM(V30:V32)","v":0},{"$f":"SUM(W34:W48)+SUM(W30:W32)","v":0},null,null,{"$f":"IF(W49=P51,0,1)","v":0},"timer"]
[]
[null,"Timer pr. år",null,null,null,{"$f":"SUM(F35:F48)+SUM(F30:F32)","v":0},0,0,0,0,0,null,null,"Timeforbrug i alt.:",null,{"$f":"SUM(K35:K48)+SUM(K30:K32)","v":0}]
[]
[null,"A) Direkte lønomkostninger",null,null,null,null,null,null,null,null,null,{"$f":"L49","v":0},{"$f":"M49","v":0},{"$f":"N49","v":0},{"$f":"O49","v":0},{"$f":"SUM(L53:O53)","v":0}]
[]
[null,{"$f":"  \"B) Indirekte omkostninger beregnet som \" &OH*100 &\" % af lønnen (OH)\"","v":"B) Indirekte omkostninger beregnet som 116 % af lønnen (OH)"},null,null,null,null,null,null,null,null,null,{"$f":"$N$20*L49","v":0},{"$f":"$N$20*M49","v":0},{"$f":"$N$20*N49","v":0},{"$f":"$N$20*O49","v":0},{"$f":"$N$20*P49","v":0}]
[]
[null,"Drift:",null,null,null,null,null,null,null,null,null,{"$f":"År","v":2023},{"$f":"År+1","v":2024},{"$f":"År+2","v":2025},{"$f":"År+3","v":2026},"I alt",null,null,null,null,null,null,null,null,null,{"$f":"SUM(Z48:Z49)","v":0},"Ok"]
[null,"Analyser",null,null,null,null,null,null,null,null,null,null,null,null,null,{"$f":"SUM(L58:O58)","v":0}]
[null,"Anskaffelser",null,null,null,null,null,null,null,null,null,null,null,null,null,0]
[null,"Rejser",null,null,null,null,null,null,null,null,null,null,null,null,null,0]
[null,"Intern handel",null,null,null,null,null,null,null,null,null,null,null,null,null,0]
[null,"Ekstern bistand",null,null,null,null,null,null,null,null,null,null,null,null,null,0]
[null,"Drift i øvrigt",null,null,null,null,null,null,null,null,null,null,null,null,null,0]
[null,"Andet",null,null,null,null,null,null,null,null,null,null,null,null,null,0]
[null,"Andet",null,null,null,null,null,null,null,null,null,null,null,null,null,0]
[null,"Andet",null,null,null,null,null,null,null,null,null,null,null,null,null,0]
[]
[null,"C) Drift i alt",null,null,null,null,null,null,null,null,null,{"$f":"SUM(L58:L66)","v":0},{"$f":"SUM(M58:M66)","v":0},{"$f":"SUM(N58:N66)","v":0},{"$f":"SUM(O58:O66)","v":0},0]
[]
[null,"Beregnede omkostninger:",null,null,null,null,null,null,null,null,null,{"$f":"År","v":2023},{"$f":"År+1","v":2024},{"$f":"År+2","v":2025},{"$f":"År+3","v":2026},"I alt"]
[null,"Renter",null,null,null,null,null,null,null,null,null,null,null,null,null,{"$f":"SUM(L71:O71)","v":0}]
[null,"Udvikling",null,null,null,null,null,null,null,null,null,null,null,null,null,{"$f":"SUM(L72:O72)","v":0}]
[null,"Andet",null,null,null,null,null,null,null,null,null,null,null,null,null,0]
[]
[null,"D) Beregnede omkostninger i alt",null,null,null,null,null,null,null,null,null,{"$f":"SUM(L71:L74)","v":0},{"$f":"SUM(M71:M74)","v":0},0,0,0]
[]
[null,{"$f":"\"E) Direkte lønomkostninger + \" & \"Indirekte omkostninger \" &OH*100 &\" % af lønnen  + Drift  + Beregnede omk.)\"","v":"E) Direkte lønomkostninger + Indirekte omkostninger 116 % af lønnen  + Drift  + Beregnede omk.)"},null,null,null,null,null,null,null,null,null,{"$f":"L53+L55+L68+L75","v":0},{"$f":"M53+M55+M68+M75","v":0},0,0,{"$f":"SUM(L77:O77)","v":0}]
[]
[null,{"$f":"\"F) EBIT-AU's kommercielle afkast som er \"  & P22*100 & \" % af (E).\"","v":"F) EBIT-AU's kommercielle afkast som er 10 % af (E)."},null,null,null,null,null,null,null,null,null,{"$f":"L77*$P$22","v":0},{"$f":"M77*$P$22","v":0},{"$f":"N77*$P$22","v":0},{"$f":"O77*$P$22","v":0},{"$f":"SUM(L79:O79)","v":0}]
[]
[null,"G) Omkostninger i alt inklusiv EBIT-avance (E+F)  svarende til en minimumspris på kr",null,null,null,null,null,null,null,null,null,{"$f":"L77+L79","v":0},{"$f":"M77+M79","v":0},0,0,0]
[]
[null,"H) Aftalt pris   ",null,null,null,null,null,null,null,null,null,null,null,null,null,{"$f":"SUM(L83:O83)","v":0}]
[]
[null,"I) Forventet resultat",null,null,null,null,null,null,null,null,null,{"$f":"L83-L81","v":0},{"$f":"M83-M81","v":0},{"$f":"N83-N81","v":0},{"$f":"O83-O81","v":0},{"$f":"SUM(L85:O85)","v":0}]
[]
[]
[null,"Underskrifter.:"]
[null,null,{"$f":"IF(C18=\"\",\"Institutleder\",C18)","v":"Institutleder"},null,null,null,null,null,null,null,null,null,{"$f":"IF(C22=\"\",\"Projektøkonom\",C22)","v":"Projektøkonom"}]
[]
[]
[null,"Dato:"]
[null,null,{"$f":"IF(C20=\"\",\"Projektleder\",C20)","v":"Projektleder"}]

{"sheet":"Institutter","index":2,"n_rows":212,"n_cols":8,"rows_kept":212,"cut":false,"hidden":true,"merged":[]}
["Sted nr","Institut","Fak","RS nr.","Ansvarlig","Navision Kostpris\n DR4 og DR5","Navision Kostpris\n DR2","Tidsregistrering"]
[1111,"AR Fælles Kasse","AR","RS15485","Johnny Laursen",1924,1485,"NEJ"]
[1141,"AR Fælles","AR","RS15485","Johnny Laursen",1924,1485,"NEJ"]
[1181,"AR Bygningspuljen","AR","RS15485","Johnny Laursen",1924,1485,"NEJ"]
[1188,"AR Husleje o.l.","AR","RS15485","Johnny Laursen",1924,1485,"NEJ"]
[1191,"AR HUM-rådet","AR","RS15485","Johnny Laursen",1924,1485,"NEJ"]
[1211,"AR Dekanat","AR","RS15485","Johnny Laursen",1924,1485,"NEJ"]
[1212,"AR Dekanens pulje","AR","RS15485","Johnny Laursen",1924,1485,"NEJ"]
[1231,"AR Ph.d.-stipedier","AR","RS15485","Johnny Laursen",1924,1485,"NEJ"]
[1232,"AR Ph.d.-Puljer og -programmer","AR","RS15485","Johnny Laursen",1924,1485,"NEJ"]
[1261,"ARTS Adm. ledelse og stab","AR","RS17746","Ole Jensen",1924,1485,"NEJ"]
[1141,"AR Fælles","AR","RS15485","Johnny Laursen",1924,1485,"NEJ"]
[1263,"ARTS Bygningsservice","AR","RS17746","Ole Jensen",1924,1485,"NEJ"]
[1264,"ARTS HR","AR","RS17746","Ole Jensen",1924,1485,"NEJ"]
[1265,"ARTS Studier","AR","RS17746","Ole Jensen",1924,1485,"NEJ"]
[1266,"ARTS Kommunikation","AR","RS17746","Ole Jensen",1924,1485,"NEJ"]
[1267,"ARTS IT","AR","RS17746","Ole Jensen",1924,1485,"NEJ"]
[1268,"ARTS Ph.d. og Internationalisering","AR","RS17746","Ole Jensen",1924,1485,"NEJ"]
[1269,"ARTS EVU og Karriere (Studier)","AR","RS17746","Ole Jensen",1924,1485,"NEJ"]
[1311,"AR CAS Institut for Kultur og Samfund","AR","RS15074","Andreas Roepstorff",1924,1485,"NEJ"]
[1321,"AR Antikmuseet","AR","RS15074","Andreas Roepstorff",1924,1485,"NEJ"]
[1411,"AR CC Institut for Æstetik og Kommunikation","AR","RS16718","Lene Unni From",1924,1485,"NEJ"]
[1421,"AR Journalistiske Universitetsuddannelser","AR","RS16718","Lene Unni From",1924,1485,"NEJ"]
[1422,"AR CAVI","AR","RS16718","Lene Unni From",1924,1485,"NEJ"]
[1510,"AR EDU Institut for Uddannelse og Pædagogik","AR","RS14702","Claus Holm",1924,1485,"NEJ"]
[1611,"AR TDM  Center","AR","RS20335","Arne Kjær",1924,1485,"NEJ"]
[2012,"ST Dekanat","ST","RS20941","Lars Henrik Andersen",1924,1580,"NEJ"]
[2022,"ST Bygningsområdet","ST","RS20941","Lars Henrik Andersen",1924,1580,"NEJ"]
[2056,"ST Talent","ST","RS10102","Niels Damgaard Hansen",1924,1580,"NEJ"]
[4021,"HE  Fælles","HE","RS25942","Anne-Mette Hvas",1924,1580,"NEJ"]
[4022,"HE  Fælles, sekretariat","HE","RS25942","Anne-Mette Hvas",1924,1580,"NEJ"]
[4023,"HE  Fælles, TRYK","HE","RS25942","Anne-Mette Hvas",1924,1580,"NEJ"]
[4024,"HE Fælles, Dyrestald","HE","RS25942","Anne-Mette Hvas",1924,1580,"NEJ"]
[4025,"HE Fælles, Medicinerhuset","HE","RS25942","Anne-Mette Hvas",1924,1580,"NEJ"]
[4026,"HE Fælles, Forskeruddannelsen","HE","RS15255","Lise Wogensen Bach",1924,1580,"NEJ"]
[4027,"HE Fælles, Medicinsk uddannelse","HE","RS32525","Charlotte Ringsted",1924,1580,"NEJ"]
[4028,"HE Center for Sundhedssamarbejde","HE","RS32972","Carsten Obel",1924,1580,"NEJ"]
[4031,"HE  Fælles, Bygningsdrift","HE","RS19630","Conor Leerhøy",1924,1580,"NEJ"]
[4032,"HE  Fælles, Rengøring","HE","RS19630","Conor Leerhøy",1924,1580,"NEJ"]
[4111,"HE Den basale Sektor","HE","RS25942","Anne-Mette Hvas",1924,1580,"NEJ"]
[4211,"HE BIOMED Inst. for Biomedicin","HE","RS13484","Thomas G. Jensen",1924,1580,"NEJ"]
[4311,"HE CLIN Fælles","HE","RS39370","Jørgen Frøkær",1924,1580,"NEJ"]
[4312,"HE CLIN xxx","HE","RS39370","Jørgen Frøkær",1924,1580,"NEJ"]
[4313,"HE CLIN NBG","HE","RS39370","Jørgen Frøkær",1924,1580,"NEJ"]
[4314,"HE CLIN THG","HE","RS39370","Jørgen Frøkær",1924,1580,"NEJ"]
[4315,"HE CLIN P.P. Ørumsgade","HE","RS39370","Jørgen Frøkær",1924,1580,"NEJ"]
[4316,"HE CLIN SKS","HE","RS39370","Jørgen Frøkær",1924,1580,"NEJ"]
[4317,"HE CLIN Risskov","HE","RS39370","Jørgen Frøkær",1924,1580,"NEJ"]
[4318,"HE CLIN Brendstrupgaardsvej","HE","RS39370","Jørgen Frøkær",1924,1580,"NEJ"]
[4320,"HE CLIN Science Park","HE","RS39370","Jørgen Frøkær",1924,1580,"NEJ"]
[4321,"HE CLIN Brædstrup","HE","RS39370","Jørgen Frøkær",1924,1580,"NEJ"]
[4322,"HE CLIN Hammel","HE","RS39370","Jørgen Frøkær",1924,1580,"NEJ"]
[4323,"HE CLIN Herning","HE","RS39370","Jørgen Frøkær",1924,1580,"NEJ"]
[4324,"HE CLIN Holstebro","HE","RS39370","Jørgen Frøkær",1924,1580,"NEJ"]
[4325,"HE CLIN Horsens","HE","RS39370","Jørgen Frøkær",1924,1580,"NEJ"]
[4326,"HE CLIN Randers","HE","RS39370","Jørgen Frøkær",1924,1580,"NEJ"]
[4327,"HE CLIN Silkeborg","HE","RS39370","Jørgen Frøkær",1924,1580,"NEJ"]
[4328,"HE CLIN Viborg","HE","RS39370","Jørgen Frøkær",1924,1580,"NEJ"]
[4329,"HE CLIN Aarhus","HE","RS39370","Jørgen Frøkær",1924,1580,"NEJ"]
[4330,"HE CLIN Aalborg","HE","RS39370","Jørgen Frøkær",1924,1580,"NEJ"]
[4350,"IKM - AUH Kræft- og Inflammationscenteret","HE","RS39370","Jørgen Frøkær",1924,1580,"NEJ"]
[4351,"IKM - AUH Abdominalcenteret","HE","RS39370","Jørgen Frøkær",1924,1580,"NEJ"]
[4352,"IKM - AUH Hoved-Neurocenteret","HE","RS39370","Jørgen Frøkær",1924,1580,"NEJ"]
[4353,"IKM - AUH Akutcenteret","HE","RS39370","Jørgen Frøkær",1924,1580,"NEJ"]
[4354,"IKM - AUH Psykiatrien","HE","RS39370","Jørgen Frøkær",1924,1580,"NEJ"]
[4355,"IKM - HE Vest - RH Herning","HE","RS39370","Jørgen Frøkær",1924,1580,"NEJ"]
[4356,"IKM - HE Vest - RH Holstebro","HE","RS39370","Jørgen Frøkær",1924,1580,"NEJ"]
[4357,"IKM - HE Midt - RH Viborg","HE","RS39370","Jørgen Frøkær",1924,1580,"NEJ"]
[4358,"IKM - HE Midt - RH Skive","HE","RS39370","Jørgen Frøkær",1924,1580,"NEJ"]
[4359,"IKM - HE Midt - RH Silkeborg","HE","RS39370","Jørgen Frøkær",1924,1580,"NEJ"]
[4360,"IKM - HE Midt - RH Hammel","HE","RS39370","Jørgen Frøkær",1924,1580,"NEJ"]
[4361,"IKM - HE Randers - RH Randers","HE","RS39370","Jørgen Frøkær",1924,1580,"NEJ"]
[4362,"IKM - HE Horsens - RH Horsens","HE","RS39370","Jørgen Frøkær",1924,1580,"NEJ"]
[4363,"IKM - HE Horsens - RH Brædstrup","HE","RS39370","Jørgen Frøkær",1924,1580,"NEJ"]
[4364,"IKM - Aalborg Universitetshospital","HE","RS39370","Jørgen Frøkær",1924,1580,"NEJ"]
[4365,"IKM - Sekretariatet","HE","RS39370","Jørgen Frøkær",1924,1580,"NEJ"]
[4366,"IKM - Øvrige Enheder","HE","RS39370","Jørgen Frøkær",1924,1580,"NEJ"]
[4411,"HE PH Folkesundhed, fælles","HE","RS17460","Ole Bækgaard Nielsen",1924,1580,"NEJ"]
[4412,"HE PH Idræt","HE","RS17460","Ole Bækgaard Nielsen",1924,1580,"NEJ"]
[4413,"HE PH Afdeling for Biostatistik","HE","RS17460","Ole Bækgaard Nielsen",1924,1580,"NEJ"]
[4414,"HE PH Afdeling for Miljø- og Arbejdsmedicin","HE","RS17460","Ole Bækgaard Nielsen",1924,1580,"NEJ"]
[4415,"HE PH Afdeling for Epidemiologi og Socialmedicin","HE","RS17460","Ole Bækgaard Nielsen",1924,1580,"NEJ"]
[4416,"HE PH Afdeling for Almen Medicin","HE","RS17460","Ole Bækgaard Nielsen",1924,1580,"NEJ"]
[4417,"HE PH Afdeling forSundhedstjenesteforskning","HE","RS17460","Ole Bækgaard Nielsen",1924,1580,"NEJ"]
[4418,"HE PH Afdeling for Klinisk Socialmedicin","HE","RS17460","Ole Bækgaard Nielsen",1924,1580,"NEJ"]
[4419,"HE PH Afdeling for Sygeplejevidenskab","HE","RS17460","Ole Bækgaard Nielsen",1924,1580,"NEJ"]
[4501,"HE Institut IOOS","HE","RS36096","Siri Beier Jensen",1924,1580,"NEJ"]
[4502,"HE Klinisk IOOS","HE","RS36096","Siri Beier Jensen",1924,1580,"NEJ"]
[4511,"HE ODONT Inst. for Odontologi","HE","RS36096","Siri Beier Jensen",1924,1580,"NEJ"]
[4512,"HE ODONT Fællesklinikken","HE","RS36096","Siri Beier Jensen",1924,1580,"NEJ"]
[4513,"HE ODONT Centrallaboratoriet","HE","RS36096","Siri Beier Jensen",1924,1580,"NEJ"]
[4514,"HE ODONT Kommunal Børnetandklinik","HE","RS36096","Siri Beier Jensen",1924,1580,"NEJ"]
[4515,"HE ODONT Afdeling for Ortodonti","HE","RS36096","Siri Beier Jensen",1924,1580,"NEJ"]
[4516,"HE ODONT Afdeling for Oral Radiologi","HE","RS36096","Siri Beier Jensen",1924,1580,"NEJ"]
[4517,"HE ODONT Afdeling for Orofacial Smerte & Kæbefunk.","HE","RS36096","Siri Beier Jensen",1924,1580,"NEJ"]
[4518,"HE ODONT Afdeling for Oral Biologi","HE","RS36096","Siri Beier Jensen",1924,1580,"NEJ"]
[4521,"HE ODONT Afdeling for Samf.odont.& Pæd.","HE","RS36096","Siri Beier Jensen",1924,1580,"NEJ"]
[4522,"HE ODONT Afdeling for Tandsygdomslære","HE","RS36096","Siri Beier Jensen",1924,1580,"NEJ"]
[4523,"HE ODONT Afdeling for TMK & Oral Patologi","HE","RS36096","Siri Beier Jensen",1924,1580,"NEJ"]
[4524,"HE ODONT Afdeling for Protetik","HE","RS36096","Siri Beier Jensen",1924,1580,"NEJ"]
[4525,"HE ODONT Afdeling for Parodontologi","HE","RS36096","Siri Beier Jensen",1924,1580,"NEJ"]
[4611,"HE FORENS Inst. for Retsmedicin","HE","RS16965","Christian Lindholst",1924,1580,"NEJ"]
[4811,"HE SKT Skolen for Klinikass. og Tandplejere","HE","RS36096","Siri Beier Jensen",1924,1580,"NEJ"]
[4901,"HE Sekretariatet","HE","RS21969","Nikolaj Harbjerg",1924,1580,"NEJ"]
[4902,"HE Økonomi","HE","RS21969","Nikolaj Harbjerg",1924,1580,"NEJ"]
[4903,"HE Bygninger","HE","RS21969","Nikolaj Harbjerg",1924,1580,"NEJ"]
[4904,"HE HR","HE","RS21969","Nikolaj Harbjerg",1924,1580,"NEJ"]
[4905,"HE IT","HE","RS21969","Nikolaj Harbjerg",1924,1580,"NEJ"]
[4906,"HE Uddannelse","HE","RS21969","Nikolaj Harbjerg",1924,1580,"NEJ"]
[4907,"HE Forskeruddannelsen","HE","RS21969","Nikolaj Harbjerg",1924,1580,"NEJ"]
[4908,"HE Kommunikation","HE","RS21969","Nikolaj Harbjerg",1924,1580,"NEJ"]
[5011,"BSS Dekanens Pulje","BSS","RS22852","Thomas Pallesen",1924,1485,"NEJ"]
[5021,"BSS Dekanatet","BSS","RS22852","Thomas Pallesen",1924,1485,"NEJ"]
[5031,"BSS Husleje o.l.","BSS","RS22852","Thomas Pallesen",1924,1485,"NEJ"]
[5041,"BSS CUL Center for Undervisning og Læring","BSS","RS22852","Thomas Pallesen",1924,1485,"NEJ"]
[5051,"BSS PhD-skole for Business and Social Sciences","BSS","RS22852","Thomas Pallesen",1924,1485,"NEJ"]
[5061,"BSS Executive","BSS","RS22852","Thomas Pallesen",1924,1485,"NEJ"]
[5091,"BSS Bygningspuljen","BSS","RS22852","Thomas Pallesen",1924,1485,"NEJ"]
[5092,"BSS Gartnerafdeling","BSS","RS22852","Thomas Pallesen",1924,1485,"NEJ"]
[5111,"BSS BCOM Inst. for Erhvervskommunikation","BSS","RS18781","Christa Thomsen",1924,1485,"NEJ"]
[5211,"BSS LAW Juridisk Institut","BSS","RS11179","Torsten Iversen",1924,1485,"NEJ"]
[5311,"BSS PS Inst. for Statskundskab","BSS","RS16271","Peter Munk Christiansen",1924,1485,"NEJ"]
[5321,"BSS CFA Center for Forskningsanalyse","BSS","RS16271","Peter Munk Christiansen",1924,1485,"NEJ"]
[5411,"BSS PSY Psykologisk Institut","BSS","RS15043","Jan Tønnesvang",1924,1485,"NEJ"]
[5421,"BSS CRF Center for Rusmiddelforskning","BSS","RS15043","Jan Tønnesvang",1924,1485,"NEJ"]
[5511,"BSS MGMT Inst. for Virksomhedsledelse","BSS","RS14443","Jacob Eskildsen",1924,1485,"NEJ"]
[5611,"BSS ECON Inst. for Økonomi","BSS","RS19178","Niels Haldrup",1924,1485,"NEJ"]
[5621,"BSS NCRR Center for Registerforskning","BSS","RS21391","Niels O. Mejlgaard",1924,1485,"NEJ"]
[5711,"BSS AU HE, AU Herning","BSS","RS18107","Anders Frederiksen",1924,1485,"NEJ"]
[5911,"BSS It-vest","BSS","RS14472","Gitte Møldrup Nielsen",1924,1485,"NEJ"]
[5921,"BSS Censorformandsskab","BSS","RS29378","Klaus Lynbech",1924,1485,"NEJ"]
[5931,"BSS Adm.stab","BSS","RS12277","Anne Bækby",1924,1485,"NEJ"]
[5932,"BSS Økonomi","BSS","RS12277","Anne Bækby",1924,1485,"NEJ"]
[5933,"BSS Plan/bygninger","BSS","RS12277","Anne Bækby",1924,1485,"NEJ"]
[5934,"BSS HR","BSS","RS12277","Anne Bækby",1924,1485,"NEJ"]
[5935,"BSS Uddannelse","BSS","RS12277","Anne Bækby",1924,1485,"NEJ"]
[5936,"BSS Kommunikation","BSS","RS12277","Anne Bækby",1924,1485,"NEJ"]
[5937,"BSS IT","BSS","RS12277","Anne Bækby",1924,1485,"NEJ"]
[5938,"BSS EVU/Karriere/Alumne","BSS","RS12277","Anne Bækby",1924,1485,"NEJ"]
[6111,"Tech Dekanat og fællesomk.","TECH","RS42010","Eskild Holm Nielsen",1460,1460,"JA"]
[6113,"Tech Ph.d. skole","TECH","RS42010","Eskild Holm Nielsen",1460,1460,"JA"]
[6116,"Tech Fakultetspuljer","TECH","RS42010","Eskild Holm Nielsen",1460,1460,"JA"]
[6119,"Tech Budgettekniske Poster","TECH","RS42010","Eskild Holm Nielsen",1460,1460,"JA"]
[6121,"Tech Bygningsomr.","TECH","RS42010","Eskild Holm Nielsen",1460,1460,"JA"]
[6151,"Tech Adm. Center excel Bygn.","TECH","RS10102","Niels Damgaard Hansen",1460,1460,"JA"]
[6211,"Tech BIOS Inst. for Bioscience","TECH","RS19272","Mikkel Peter Tamstorf",1460,1460,"JA"]
[6221,"Tech ENVS Inst. for Miljøvidenskab","TECH","RS32910","Carsten Suhr Jacobsen",1460,1460,"JA"]
[6231,"Tech AGRO Inst. for Agroøkologi","TECH","RS22130","Jørgen E. Olesen",1460,1460,"JA"]
[6241,"Tech ANIS Inst. for Husdyrvidenskab","TECH","RS20914","Charlotte Lauridsen",1460,1460,"JA"]
[6251,"Tech FOOD Inst. for Fødevarer","TECH","RS29095","Michelle Heather Williams",1460,1460,"JA"]
[6261,"Tech QGG ","TECH","RS14739","Mogens Sandø Lund",1460,1460,"JA"]
[6271,"Tech ENG Inst. for Ingeniørvidenskab","TECH","RS24244","Lars Ditlev Mørck Ottosen",1460,1460,"JA"]
[6281,"Tech ASE Ingeniørhøjskolen Aarhus Universitet","TECH","RS29992","Conni Edith Simonsen",1460,1460,"JA"]
[6311,"Tech BCE insti. for BIO- og Kemi teknologi","TECH","RS24244","Lars Ditlev Mørck Ottosen",1460,1460,"JA"]
[6321,"Tech ECE insti. for Elektro og komputer teknologi","TECH","RS30283","Mikael Bergholz Knudsen",1460,1460,"JA"]
[6331,"Tech CAE insti. for Byggeri og bygningsdesign","TECH","RS43854","Mikkel Kristian Kragh",1460,1460,"JA"]
[6341,"Tech MPE instit. for Maskinteknik","TECH","RS43875","Per Anders Håkan Brandt",1460,1460,"JA"]
[6611,"Tech DCA Nat. Center for Fødevarer og Jordbrug","TECH","RS21086","Niels Halberg",1460,1460,"JA"]
[6621,"Tech DCE Nationalt Center for Miljø og Energi","TECH","RS21219","Hanne Bach Clausen",1460,1460,"JA"]
[6711,"Tech ICROFS Økologisk Jordbrug og Fødevaresystemer","TECH","RS21016","Jens Jakob Sehested",1460,1460,"JA"]
[6721,"Tech STLL Learning Lab","TECH","RS30163","Jens Bennedsen",1460,1460,"JA"]
[6781,"Tech interdisciplinære forskningssatsninger","TECH","RS42010","Eskild Holm Nielsen",1460,1460,"JA"]
[7111,"Nat Dekanat og fællesomk.","NAT","RS42358","Kristian Pedersen",1924,1580,"NEJ"]
[7113,"Nat Ph.d. skole","NAT","RS42358","Kristian Pedersen",1924,1580,"NEJ"]
[7116,"Nat Fakultetspuljer","NAT","RS42358","Kristian Pedersen",1924,1580,"NEJ"]
[7119,"Nat Budgettekniske Poster","NAT","RS42358","Kristian Pedersen",1924,1580,"NEJ"]
[7121,"Nat Bygningsomr.","NAT","RS42358","Kristian Pedersen",1924,1580,"NEJ"]
[7151,"Nat Adm. Center excel Bygn.","NAT","RS10102","Niels Damgaard Hansen",1924,1580,"NEJ"]
[7221,"Nat BIOL Inst. Biologi","NAT","RS14772","Hans Brix",1924,1580,"NEJ"]
[7231,"Nat GEO Inst. for Geoscience","NAT","RS10107","Jan Piotrowski",1924,1580,"NEJ"]
[7241,"Nat MBG Inst. for Molekylærbiologi og Genetik","NAT","RS18418","Erik Østergaard Jensen",1924,1580,"NEJ"]
[7251,"Nat PHYS Inst. for Fysik og Astronomi","NAT","RS22676","Ulrik Ingerslev Uggerhøj",1924,1580,"NEJ"]
[7261,"Nat MATH Inst for Matematik","NAT","RS22100","Jacob Schach Møller",1924,1580,"NEJ"]
[7271,"Nat CHEM Inst. for Kemi","NAT","RS11762","Hanne Birgit Schiøtt",1924,1580,"NEJ"]
[7281,"Nat CS Inst. for Datalogi","NAT","RS18031","Kaj Grønbæk",1924,1580,"NEJ"]
[7291,"Nat iNano Interdisc. Nanoscience Center","NAT","RS20418","Thomas Vosegaard",1924,1580,"NEJ"]
[7301,"Nat BiRC Center for Bioinformatik","NAT","RS14484","Christian N. S Pedersen",1924,1580,"NEJ"]
[7611,"Nat Steno Museet","NAT","RS42358","Kristian Pedersen",1924,1580,"NEJ"]
[7781,"Nat interdisciplinære forskningssatsninger","NAT","RS42358","Kristian Pedersen",1924,1580,"NEJ"]
[8011,"Nat-Tech Stab","NAT_TECH","RS10102","Niels Damgaard Hansen",1924,1580,"NEJ"]
[8021,"Nat-Tech Bygninger","NAT_TECH","RS10102","Niels Damgaard Hansen",1924,1580,"NEJ"]
[8031,"Nat-Tech HR","NAT_TECH","RS10102","Niels Damgaard Hansen",1924,1580,"NEJ"]
[8041,"Nat-Tech IT","NAT_TECH","RS10102","Niels Damgaard Hansen",1924,1580,"NEJ"]
[8051,"Nat-Tech Kommunikation","NAT_TECH","RS10102","Niels Damgaard Hansen",1924,1580,"NEJ"]
[8061,"Nat-Tech Uddannelse","NAT_TECH","RS10102","Niels Damgaard Hansen",1924,1580,"NEJ"]
[8071,"Nat-Tech Økonomi","NAT_TECH","RS10102","Niels Damgaard Hansen",1924,1580,"NEJ"]
[8121,"Nat-Tech Bygninger (fordelt)","NAT_TECH","RS10102","Niels Damgaard Hansen",1924,1580,"NEJ"]
[8131,"Nat-Tech Øvrige (fordelt)","NAT_TECH","RS10102","Niels Damgaard Hansen",1924,1580,"NEJ"]
[9021,"UNILED Strategiske Investeringer","ADM","RS11259","Brian Bech Nielsen",1924,1580,"NEJ"]
[9111,"Fællesadm. generelt","ADM","RS15388","Kristian Thorn",1924,1580,"NEJ"]
[9121,"Fællesadm. bygninger","ADM","RS15388","Kristian Thorn",1924,1580,"NEJ"]
[9131,"Erhverv og Innovation","ADM","RS17168","Kirsten Jensen",1924,1580,"NEJ"]
[9141,"Universitetsledelsens stab","ADM","RS15388","Kristian Thorn",1924,1580,"NEJ"]
[9151,"AU Forskning og Eksterne Relationer","ADM","RS17425","John Starup Westensee",1924,1580,"NEJ"]
[9171,"SDC-Kinasamarbejdet","ADM","RS23117","Morten Laugesen",1924,1580,"NEJ"]
[9181,"Universitetspædagogisk Center","ADM","RS43283","Anne Mette Mørke",1924,1580,"NEJ"]
[9251,"AU Økonomi","ADM","RS44228","Morten Pedersen Winterberg",1924,1580,"NEJ"]
[9271,"AU Bygninger","ADM","RS15388","Kristian Thorn",1924,1580,"NEJ"]
[9301,"AU HR","ADM","RS28402","Anne Lindholm Behnk",1924,1580,"NEJ"]
[9351,"AU Uddannelse","ADM","RS10126","Anna Bak Maigaard",1924,1580,"NEJ"]
[9352,"Rådgivnings- og Støtteenheden","ADM","RS10126","Anna Bak Maigaard",1924,1580,"NEJ"]
[9353,"Studievalg Østjylland","ADM","RS15388","Kristian Thorn",1924,1580,"NEJ"]
[9451,"AU IT og Digitale Medier","ADM","RS33003","Peter Bruun Nielsen",1924,1580,"NEJ"]
[9501,"AIAS","ADM","RS17354","Søren Rud Keiding",1924,1580,"NEJ"]
[9711,"AU fælles bygninger","ADM","RS15388","Kristian Thorn",1924,1580,"NEJ"]
[9911,"Regnskabstekniske poster","ADM","RS15388","Kristian Thorn",1924,1580,"NEJ"]
[9912,"SLS lønteknisk sted","ADM","RS15388","Kristian Thorn",1924,1580,"NEJ"]
[9913,"Afstemning Finans_Sag","ADM","RS15388","Kristian Thorn",1924,1580,"NEJ"]
[9975,"SLS mapning D","ADM","RS15388","Kristian Thorn",1924,1580,"NEJ"]
[9976,"SLS mapning B","ADM","RS15388","Kristian Thorn",1924,1580,"NEJ"]
[9977,"ADM teknisk sted","ADM","RS15388","Kristian Thorn",1924,1580,"NEJ"]
[9978,"Default stedkode","ADM","RS15388","Kristian Thorn",1924,1580,"NEJ"]

{"sheet":"Takstkatalog","index":3,"n_rows":73,"n_cols":16,"rows_kept":73,"cut":false,"hidden":true,"merged":[[0,0,0,3],[0,5,0,8],[1,6,1,8]]}
["Månedsløn, april 2021 (kr.)",null,null,null,null,"Stigningstakster"]
["Stillingstype","Lav","Middel","Høj",null,"Dato","Regulering"]
["111    Professor",68261,75121,77453,null,"2021-01-10",3.0000000000000001E-3,"OK21 sats",3.0000000000000001E-3]
["114    Professor MSO",65597,66872,67487,null,"2022-01-04",1.1900000000000001E-2,"OK21 sats",1.49E-2]
["121    Lektor",55591,59272,61800,null,"2022-01-10",3.0000000000000001E-3,"OK21 sats"]
["124    Seniorforsker",51389,56898,61401,null,"2023-01-04",1.4800000000000001E-2,"OK21 sats",1.83E-2]
["131    Adjunkt",45772,47406,48594,null,"2023-01-10",3.5000000000000001E-3,"OK21 sats"]
["137    Post doc.",45772,46127,46864,null,"2024-01-04",0.02,"Estimeret",0.02]
["154    Videnskabelig assistent",37370,40471,44406,null,"2025-01-04",0.02,"Estimeret",0.02]
["212    Lønnet ph.d.-stipendiat",34607,37379,39394,null,"2026-04-01",0.02,"Estimeret",0.02]
["212    Lønnet ph.d. Klinisk Medicin",37111,40405,43901]
["421    Chef-/specialkonsulent",53566,57249,59966]
["422    Fuldmægtig",44751,46895,50340]
["431    Kontor m.fl.",35238,38953,41910]
["451    AC-personale m.fl.",43029,46651,50931]
["461    Tekniker",40614,43750,46837]
["465    Laborant m.fl.",35178,37914,41161]
["466    IT-medarbejder",36520,42951,49258]
[]
[]
[null,null,null,null,null,null,null,null,null,null,"Fakulteter:"]
[]
[null,null,null,null,null,null,null,null,null,null,"AR"]
[null,null,null,null,null,null,null,null,null,null,"BSS"]
[null,null,null,null,null,null,null,null,null,null,"FÆL"]
[null,null,null,null,null,null,null,null,null,null,"HE"]
[null,null,null,null,null,null,null,null,null,null,"ST"]
[null,null,null,null,null,null,null,null,null,null,"Nat"]
[null,null,null,null,null,null,null,null,null,null,"Tech"]
[]
[null,null,null,null,null,null,null,null,null,null,"Institutter:",null,"Opdateret 28/10-2020"]
[]
[null,null,null,null,null,null,null,null,null,null,"Institut for Agroøkologi",null,null,null,null,"Institut for Agroøkologi"]
[null,null,null,null,null,null,null,null,null,null,"Institut for Bioscience",null,null,null,null,{"$f":"TRIM(P33)","v":"Institut for Agroøkologi"}]
[null,null,null,null,null,null,null,null,null,null,"Institut for Fødevarer",null,null,null,null,"Institut for Fødevarer"]
[null,null,null,null,null,null,null,null,null,null,"Institut for Husdyrvidenskab",null,null,null,null,"Institut for Husdyrvidenskab"]
[null,null,null,null,null,null,null,null,null,null,"Institut for Ingeniørvidenskab",null,null,null,null,"Institut for Ingeniørvidenskab"]
[null,null,null,null,null,null,null,null,null,null,"Institut for Miljøvidenskab",null,null,null,null,"Institut for Miljøvidenskab"]
[null,null,null,null,null,null,null,null,null,null,"Center for Kvantitativ Genetik og Genomforskning (QGG)",null,null,null,null,"Center for Kvantitativ Genetik og Genomforskning (QGG)"]
[null,null,null,null,null,null,null,null,null,null,"Ingeniørhøjskolen Aarhus Universitet (ASE)",null,null,null,null,"Ingeniørhøjskolen Aarhus Universitet (ASE)"]
[null,null,null,null,null,null,null,null,null,null,"DCA - Nationalt Center for Fødevarer og Jordbrug",null,null,null,null,"DCA - Nationalt Center for Fødevarer og Jordbrug"]
[null,null,null,null,null,null,null,null,null,null,"DCE - Nationalt Center for Miljø og Energi",null,null,null,null,"DCE - Nationalt Center for Miljø og Energi"]
[null,null,null,null,null,null,null,null,null,null,"Institut for Biologi",null,null,null,null,"Institut for Biologi"]
[null,null,null,null,null,null,null,null,null,null,"Institut for Datalogi",null,null,null,null,"Institut for Datalogi"]
[null,null,null,null,null,null,null,null,null,null,"Institut for Fysik og Astronomi",null,null,null,null,"Institut for Fysik og Astronomi"]
[null,null,null,null,null,null,null,null,null,null,"Institut for Geoscience",null,null,null,null,"Institut for Geoscience"]
[null,null,null,null,null,null,null,null,null,null,"Institut for Kemi",null,null,null,null,"Institut for Kemi"]
[null,null,null,null,null,null,null,null,null,null,"Institut for Matematik",null,null,null,null,"Institut for Matematik"]
[null,null,null,null,null,null,null,null,null,null,"Institut for Molekylærbiologi og Genetik",null,null,null,null,"Institut for Molekylærbiologi og Genetik"]
[null,null,null,null,null,null,null,null,null,null,"Interdisciplinært Nanoscience Center (iNANO)",null,null,null,null,"Interdisciplinært Nanoscience Center (iNANO)"]
[null,null,null,null,null,null,null,null,null,null,"Institut for Biomedicin",null,null,null,null,"Institut for Biomedicin"]
[null,null,null,null,null,null,null,null,null,null,"Institut for Folkesundhed",null,null,null,null,"Institut for Folkesundhed"]
[null,null,null,null,null,null,null,null,null,null,"Institut for Klinisk Medicin",null,null,null,null,"Institut for Klinisk Medicin"]
[null,null,null,null,null,null,null,null,null,null,"Institut for Odontologi og Oral Sundhed",null,null,null,null,"Institut for Odontologi og Oral Sundhed"]
[null,null,null,null,null,null,null,null,null,null,"Institut for Retsmedicin",null,null,null,null,"Institut for Retsmedicin"]
[null,null,null,null,null,null,null,null,null,null,"Institut for Virksomhedsledelse",null,null,null,null,"Institut for Virksomhedsledelse"]
[null,null,null,null,null,null,null,null,null,null,"Institut for Økonomi",null,null,null,null,"Institut for Økonomi"]
[null,null,null,null,null,null,null,null,null,null,"Juridisk Institut",null,null,null,null,"Juridisk Institut"]
[null,null,null,null,null,null,null,null,null,null,"Institut for Statskundskab",null,null,null,null,"Institut for Statskundskab"]
[null,null,null,null,null,null,null,null,null,null,"Psykologisk Institut",null,null,null,null,"Psykologisk Institut"]
[null,null,null,null,null,null,null,null,null,null,"Institut for Forretningsudvikling og Teknologi",null,null,null,null,"Institut for Forretningsudvikling og Teknologi"]
[null,null,null,null,null,null,null,null,null,null,"Institut for Kultur og Samfund",null,null,null,null,"Institut for Kultur og Samfund"]
[null,null,null,null,null,null,null,null,null,null,"Institut for Kommunikation og Kultur",null,null,null,null,"Institut for Kommunikation og Kultur"]
[null,null,null,null,null,null,null,null,null,null,"DPU - Danmarks institut for Pædagogik og Uddannelse",null,null,null,null,"DPU - Danmarks institut for Pædagogik og Uddannelse"]
[null,null,null,null,null,null,null,null,null,null,"AU Forskning og Eksterne Relationer",null,null,null,null,"AU Forskning og Eksterne Relationer"]
[null,null,null,null,null,null,null,null,null,null,"AU HR",null,null,null,null,"AU HR"]
[null,null,null,null,null,null,null,null,null,null,"AU IT",null,null,null,null,"AU IT"]
[null,null,null,null,null,null,null,null,null,null,"AU Uddannelse",null,null,null,null,"AU Uddannelse"]
[null,null,null,null,null,null,null,null,null,null,"AU Økonomi og Bygninger",null,null,null,null,"AU Økonomi og Bygninger"]
[null,null,null,null,null,null,null,null,null,null,"Universitetsledelsens Stab",null,null,null,null,"Universitetsledelsens Stab"]
[null,null,null,null,null,null,null,null,null,null,"Universitetspædagogisk center",null,null,null,null,"Universitetspædagogisk center"]
[null,null,null,null,null,null,null,null,null,null,"Erhverv og Innovation",null,null,null,null,"Erhverv og Innovation"]
[null,null,null,null,null,null,null,null,null,null,"Rådgivnings- og støttecenteret",null,null,null,null,"Rådgivnings- og støttecenteret"]